[Event "Portuguese-ch U10-12 2022"]
[Site "Fatima"]
[Date "2022.04.11"]
[Round "3.2"]
[White "De Sousa Silva, Lucas Jose"]
[Black "Faryma, Matviy"]
[Result "1-0"]
[ECO "C50"]
[WhiteElo "1656"]
[BlackElo "1426"]
[Annotator "NA RC"]
[PlyCount "87"]
[EventDate "2022.04.10"]
[EventType "swiss"]
[EventCountry "POR"]
[SourceTitle "playchess.com"]
[Source "ChessBase"]
[SourceQuality "1"]
[TimeControl "5400+30"]

1. e4 {[%emt 0:00:03]} e5 {[%emt 0:00:17]} 2. Nf3 {[%emt 0:00:11]} Nc6 {[%emt 0:00:07]} 3. Bc4 {[%emt 0:01:07]} Bc5 {[%emt 0:01:02]} 4. Nc3 {[%emt 0:00:39]} Nf6 {[%emt 0:00:28]} 5. d3 {[%emt 0:00:16]} h6 {[%emt 0:00:22]} 6. a3 {[%emt 0:00:34]} d6 {[%emt 0:01:37]} 7. h3 {[%emt 0:00:33]} Qe7 {[%emt 0:00:25]} 8. Be3 {[%emt 0:04:26]} Bb6 {[%emt 0:00:58]} 9. O-O {[%emt 0:01:09]} g5 {[%emt 0:00:30]} 10. Nxg5 {[%emt 0:04:28]} hxg5 {[%emt 0:01:06]} 11. Bxg5 {[%emt 0:00:26]} Be6 {[%emt 0:00:24]} 12. Qf3 {[%emt 0:00:50]} Rg8 {[%emt 0:03:58]} 13. Bxf6 {[%emt 0:02:36]} Qd7 {[%emt 0:01:15]} 14. Bxe6 {[%emt 0:01:09]} Qxe6 {[%emt 0:00:52]} 15. Qf5 {[%emt 0:01:26]} Qxf5 {[%emt 0:01:09]} 16. exf5 {[%emt 0:00:08]} Nd4 {[%emt 0:00:14]} 17. Nd5 {[%emt 0:02:14]} Nxf5 {[%emt 0:00:40]} 18. Nxb6 {[%emt 0:01:14]} axb6 {[%emt 0:00:43]} 19. f4 {[%emt 0:00:12]} Ne3 {[%emt 0:00:42]} 20. Rf2 {[%emt 0:00:17]} exf4 {[%emt 0:00:17]} 21. Re1 {[%emt 0:03:19]} Kd7 {[%emt 0:04:27]} 22. Bd4 {[%emt 0:02:49]} Nd5 {[%emt 0:32:51]} 23. c4 {[%emt 0:00:57]} Ne7 {[%emt 0:01:18]} 24. Rxf4 {[%emt 0:02:24]} Raf8 {[%emt 0:00:24]} 25. Bf6 {[%emt 0:08:04]} Ng6 {[%emt 0:02:18]} 26. Rfe4 {[%emt 0:01:10]} Re8 {[%emt 0:00:45]} 27. h4 {[%emt 0:00:27]} Re6 {[%emt 0:03:08]} 28. Rxe6 {[%emt 0:09:13]} fxe6 {[%emt 0:00:05]} 29. Rf1 {[%emt 0:00:09]} e5 {[%emt 0:00:37]} 30. Bg5 {[%emt 0:01:03]} Rf8 {[%emt 0:05:18]} 31. h5 {[%emt 0:03:14]} Rxf1+ {[%emt 0:00:02]} 32. Kxf1 {[%emt 0:00:06]} Nf8 {[%emt 0:00:21]} 33. Kf2 {[%emt 0:00:48]} Ne6 {[%emt 0:01:01]} 34. Be3 {[%emt 0:00:15]} Ke7 {[%emt 0:00:15]} 35. Kf3 {[%emt 0:03:28]} Kf6 {[%emt 0:01:00]} 36. g4 {[%emt 0:00:15]} Nf8 {[%emt 0:02:28]} 37. Ke4 {[%emt 0:01:04]} Ne6 {[%emt 0:00:40]} 38. b4 {[%emt 0:00:31]} Nf8 {[%emt 0:01:30]} 39. d4 {[%emt 0:10:54]} exd4 {[%emt 0:01:57]} 40. g5+ {[%emt 0:00:17]} Kf7 {[%emt 0:01:19]} 41. Bxd4 {[%emt 0:01:27]} Ke6 {[%emt 0:00:21]} 42. g6 {[%emt 0:01:13]} Nd7 {[%emt 0:00:41]} 43. h6 {[%emt 0:01:08]} Nf8 {[%emt 0:02:53]} 44. g7 {[%emt 0:00:31]} 1-0

[Event "Portuguese-ch U10-12 2022"]
[Site "Fatima"]
[Date "2022.04.11"]
[Round "3.3"]
[White "Frolov, Ilya"]
[Black "Silva, Daniel Medeiros Avel"]
[Result "0-1"]
[ECO "B06"]
[WhiteElo "1271"]
[BlackElo "2024"]
[Annotator "NA RC"]
[PlyCount "82"]
[EventDate "2022.04.10"]
[EventType "swiss"]
[EventCountry "POR"]
[SourceTitle "playchess.com"]
[Source "ChessBase"]
[SourceQuality "1"]
[TimeControl "5400+30"]

1. e4 {[%emt 0:00:01]} g6 {[%emt 0:06:51]} 2. d4 {[%emt 0:00:28]} Bg7 {[%emt 0:02:09]} 3. Nc3 {[%emt 0:00:17]} c5 {[%emt 0:04:11]} 4. Nf3 {[%emt 0:01:33]} cxd4 {[%emt 0:02:30]} 5. Nxd4 {[%emt 0:00:02]} Nc6 {[%emt 0:01:12]} 6. Be3 {[%emt 0:01:41]} d6 {[%emt 0:02:58]} ({Better is} 6... Nf6 $1 $11) 7. Bb5 {[%emt 0:01:43]} Bd7 {[%emt 0:02:54]} 8. O-O {[%emt 0:01:59]} Nf6 {[%emt 0:04:47]} 9. h3 {[%emt 0:00:20]} Ne5 {[%emt 0:07:20]} 10. Bxd7+ {[%emt 0:01:41]} (10. f4 $14 {was preferrable.} Nc6 11. Nxc6 bxc6 12. Be2) 10... Qxd7 {[%emt 0:01:30]} 11. Nf3 {[%emt 0:00:22]} Nc4 {[%emt 0:04:10]} 12. Qc1 {[%emt 0:02:27]} O-O {[%emt 0:05:46]} 13. Bd4 {[%emt 0:02:04]} b5 {[%emt 0:12:28]} 14. e5 {[%emt 0:04:37]} dxe5 {[%emt 0:04:35]} 15. Bxe5 {[%emt 0:00:11]} Nxe5 {[%emt 0:02:26]} 16. Nxe5 {[%emt 0:00:02]} Qb7 {[%emt 0:02:57]} 17. Nf3 {[%emt 0:05:32]} Rfd8 {[%emt 0:05:25]} 18. a3 {[%emt 0:12:08]} Nd5 {[%emt 0:01:26]} ({Black should try} 18... Ne8 $17) 19. Nxd5 $15 {[%emt 0:00:41]} Rxd5 {[%emt 0:05:28]} 20. c3 {[%emt 0:00:27]} Rad8 {[%emt 0:01:21]} 21. Qe3 {[%emt 0:01:39]} e6 {[%emt 0:01:44]} 22. Qe2 {[%emt 0:01:33]} Qd7 {[%emt 0:01:21]} 23. Qc2 {[%emt 0:07:49]} Bf8 {[%emt 0:05:53]} 24. Rfe1 {[%emt 0:10:03]} Bg7 {[%emt 0:02:30]} 25. a4 {[%emt 0:05:16]} a6 {[%emt 0:00:09]} 26. axb5 {[%emt 0:03:09]} axb5 {[%emt 0:00:40]} 27. Qb3 {[%emt 0:00:51]} h6 {[%emt 0:01:42]} 28. Ra5 {[%emt 0:04:55]} Qc6 {[%emt 0:04:01]} 29. Rea1 {[%emt 0:08:16]} Kh7 {[%emt 0:01:55]} 30. Ra7 {[%emt 0:01:46]} R8d7 {[%emt 0:00:12]} 31. R7a6 Qc5 {[%emt 0:00:51]} 32. R6a5 {[%emt 0:03:04]} e5 {[%emt 0:01:07]} 33. Ra7 {[%emt 0:05:11]} e4 {[%emt 0:01:05]} 34. Nh2 {[%emt 0:04:22]} Rd2 {[%emt 0:01:01]} 35. Ng4 {[%emt 0:01:15]} Rxa7 {[%emt 0:00:30]} 36. Rxa7 {[%emt 0:00:50]} Qxa7 {[%emt 0:00:04]} 37. Qxb5 {[%emt 0:01:23]} Qa1+ {[%emt 0:00:28]} 38. Kh2 {[%emt 0:00:21]} Qxb2 {[%emt 0:00:06]} 39. Qc4 {[%emt 0:00:57]} Qa2 {[%emt 0:00:39]} 40. Qxe4 {[%emt 0:01:22]} f5 {[%emt 0:00:19]} 41. Qe3 {[%emt 0:00:19]} fxg4 {[%emt 0:00:15]} 0-1

[Event "Portuguese-ch U10-12 2022"]
[Site "Fatima"]
[Date "2022.04.11"]
[Round "3.4"]
[White "Almeida, Diogo Rodrigues Sant"]
[Black "Pinto, Jose Joao Meireles A"]
[Result "1-0"]
[ECO "E10"]
[WhiteElo "1467"]
[BlackElo "1288"]
[Annotator "NA RC"]
[PlyCount "77"]
[EventDate "2022.04.10"]
[EventType "swiss"]
[EventCountry "POR"]
[SourceTitle "playchess.com"]
[Source "ChessBase"]
[SourceQuality "1"]
[TimeControl "5400+30"]

1. d4 {[%emt 0:00:03]} Nf6 {[%emt 0:00:07]} 2. c4 {[%emt 0:00:14]} e6 {[%emt 0:00:04]} 3. Nf3 {[%emt 0:00:28]} c5 {[%emt 0:00:26]} 4. Nc3 {[%emt 0:00:44]} Nc6 {[%emt 0:01:32]} 5. d5 {[%emt 0:02:05]} exd5 {[%emt 0:07:27]} 6. cxd5 {[%emt 0:00:04]} Nb8 {[%emt 0:08:09]} 7. e4 {[%emt 0:01:39]} d6 {[%emt 0:01:15]} 8. h3 {[%emt 0:01:06]} Nbd7 {[%emt 0:04:39]} 9. Bf4 {[%emt 0:01:00]} a6 {[%emt 0:08:31]} 10. a4 {[%emt 0:08:28]} Qa5 {[%emt 0:03:04]} 11. Bd3 {[%emt 0:02:38]} Qc7 {[%emt 0:05:04]} 12. O-O {[%emt 0:03:00]} Ne5 {[%emt 0:01:33]} 13. Nxe5 {[%emt 0:01:51]} dxe5 {[%emt 0:01:46]} 14. Bg5 {[%emt 0:01:10]} Qb6 {[%emt 0:02:52]} 15. Qf3 {[%emt 0:06:29]} Be7 {[%emt 0:01:38]} 16. a5 {[%emt 0:01:05]} Qd6 {[%emt 0:03:03]} 17. Qe2 {[%emt 0:03:42]} Nxd5 {[%emt 0:03:50]} 18. exd5 {[%emt 0:01:21]} Bxg5 {[%emt 0:02:55]} 19. Ne4 {[%emt 0:00:04]} Qd8 {[%emt 0:03:57]} 20. Nxg5 {[%emt 0:02:14]} Qxg5 {[%emt 0:01:26]} 21. f4 {[%emt 0:00:39]} Qe7 {[%emt 0:04:19]} 22. fxe5 {[%emt 0:00:29]} O-O {[%emt 0:00:55]} 23. Qe4 {[%emt 0:03:38]} g6 {[%emt 0:00:30]} 24. e6 {[%emt 0:04:38]} Kh8 {[%emt 0:03:50]} 25. Rae1 {[%emt 0:02:38]} f6 {[%emt 0:05:00]} 26. Qf4 {[%emt 0:01:46]} g5 {[%emt 0:06:24]} 27. Qf5 {[%emt 0:01:08]} c4 {[%emt 0:00:54]} 28. Bc2 {[%emt 0:00:57]} Qg7 {[%emt 0:01:27]} 29. d6 {[%emt 0:00:42]} Rb8 {[%emt 0:03:57]} 30. d7 {[%emt 0:00:32]} Bxd7 {[%emt 0:01:29]} 31. exd7 {[%emt 0:00:04]} Rbd8 {[%emt 0:01:50]} 32. Ba4 {[%emt 0:00:24]} Qf7 {[%emt 0:03:51]} 33. Qe6 {[%emt 0:01:16]} Kg7 {[%emt 0:01:09]} 34. Re2 {[%emt 0:00:36]} h6 {[%emt 0:00:17]} 35. Rfe1 {[%emt 0:00:14]} Qxe6 {[%emt 0:01:49]} 36. Rxe6 {[%emt 0:00:18]} Rxd7 {[%emt 0:00:05]} 37. Bxd7 {[%emt 0:00:06]} Rd8 {[%emt 0:01:44]} 38. Re7+ {[%emt 0:00:11]} Kg6 {[%emt 0:00:06]} 39. Be8+ {[%emt 0:00:28]} 1-0

[Event "Portuguese-ch U10-12 2022"]
[Site "Fatima"]
[Date "2022.04.11"]
[Round "3.6"]
[White "Fernandes, Martim"]
[Black "Oliveira, Afonso Duarte Q"]
[Result "1/2-1/2"]
[ECO "B00"]
[WhiteElo "1413"]
[BlackElo "1101"]
[Annotator "NA RC"]
[PlyCount "91"]
[EventDate "2022.04.10"]
[EventType "swiss"]
[EventCountry "POR"]
[SourceTitle "playchess.com"]
[Source "ChessBase"]
[SourceQuality "1"]
[TimeControl "5400+30"]

1. e4 {[%emt 0:00:01]} b6 {[%emt 0:00:40]} 2. d4 {[%emt 0:00:26]} Bb7 {[%emt 0:00:25]} 3. Nc3 {[%emt 0:00:07]} e6 {[%emt 0:00:31]} 4. Nf3 {[%emt 0:01:22]} Ne7 {[%emt 0:00:20]} 5. Bf4 {[%emt 0:01:47]} d5 {[%emt 0:00:56]} 6. Bd3 {[%emt 0:12:27]} Ng6 {[%emt 0:02:43]} 7. Bg3 {[%emt 0:01:33]} Bb4 {[%emt 0:01:20]} 8. e5 {[%emt 0:02:43]} Nd7 {[%emt 0:01:41]} 9. a3 {[%emt 0:00:43]} Bxc3+ {[%emt 0:00:35]} 10. bxc3 {[%emt 0:00:08]} c5 {[%emt 0:00:09]} 11. Be2 {[%emt 0:15:45]} c4 {[%emt 0:02:58]} 12. h4 {[%emt 0:01:53]} h6 {[%emt 0:01:20]} 13. h5 {[%emt 0:03:47]} Ne7 {[%emt 0:00:25]} 14. Bh4 {[%emt 0:00:06]} f6 {[%emt 0:01:55]} 15. exf6 {[%emt 0:01:22]} Nxf6 {[%emt 0:00:19]} 16. Ne5 {[%emt 0:00:05]} Nf5 {[%emt 0:01:14]} 17. Ng6 {[%emt 0:12:03]} Rg8 {[%emt 0:00:31]} 18. Bf3 {[%emt 0:05:52]} Nxh4 {[%emt 0:02:07]} 19. Rxh4 {[%emt 0:02:59]} Qd7 {[%emt 0:01:35]} 20. Ne5 {[%emt 0:01:53]} Qe7 {[%emt 0:00:17]} 21. Rh3 {[%emt 0:05:20]} Nd7 {[%emt 0:03:33]} 22. Ng6 {[%emt 0:03:43]} Qf6 {[%emt 0:00:49]} 23. Bg4 {[%emt 0:02:11]} O-O-O {[%emt 0:00:56]} 24. Re3 {[%emt 0:02:13]} Rge8 {[%emt 0:01:43]} 25. Qe2 {[%emt 0:02:12]} Kb8 {[%emt 0:01:30]} 26. f4 {[%emt 0:01:43]} Nf8 {[%emt 0:00:50]} 27. Nxf8 {[%emt 0:02:27]} Qxf8 {[%emt 0:00:13]} 28. g3 {[%emt 0:00:35]} Bc8 {[%emt 0:00:30]} 29. Kd2 {[%emt 0:01:00]} Qf6 {[%emt 0:00:12]} 30. Re1 {[%emt 0:00:50]} Rd6 {[%emt 0:00:06]} 31. Kd1 {[%emt 0:01:22]} Kb7 {[%emt 0:00:14]} 32. f5 {[%emt 0:01:18]} exf5 {[%emt 0:02:55]} 33. Rxe8 {[%emt 0:00:30]} fxg4 {[%emt 0:00:13]} 34. Qe7+ {[%emt 0:00:42]} Qxe7 {[%emt 0:01:02]} 35. R8xe7+ {[%emt 0:00:26]} Ka6 {[%emt 0:00:19]} 36. Rxg7 {[%emt 0:00:18]} Rf6 {[%emt 0:00:14]} 37. Rg1 {[%emt 0:03:55]} Rf3 {[%emt 0:00:18]} 38. Kd2 {[%emt 0:00:13]} Rf2+ {[%emt 0:00:16]} 39. Kd1 {[%emt 0:02:31]} Rh2 {[%emt 0:00:41]} 40. Re1 {[%emt 0:01:15]} Bf5 {[%emt 0:00:50]} 41. Re2 {[%emt 0:00:45]} Rxh5 {[%emt 0:00:14]} 42. Rf7 {[%emt 0:00:33]} Be4 {[%emt 0:00:18]} 43. Ref2 {[%emt 0:02:35]} Rh3 {[%emt 0:00:18]} 44. R7f6 {[%emt 0:01:02]} Rxg3 {[%emt 0:00:24]} 45. Rxh6 {[%emt 0:00:48]} Rxc3 {[%emt 0:00:08]} 46. Kd2 {[%emt 0:03:45]} 1/2-1/2

[Event "Portuguese-ch U10-12 2022"]
[Site "Fatima"]
[Date "2022.04.11"]
[Round "3.7"]
[White "Castro, Daniel De Freitas"]
[Black "Moldovan, Lucas Gabriel"]
[Result "1/2-1/2"]
[ECO "B23"]
[WhiteElo "2036"]
[BlackElo "1575"]
[Annotator "NA RC"]
[PlyCount "54"]
[EventDate "2022.04.10"]
[EventType "swiss"]
[EventCountry "POR"]
[SourceTitle "playchess.com"]
[Source "ChessBase"]
[SourceQuality "1"]
[TimeControl "5400+30"]

1. e4 {[%emt 0:00:15]} c5 {[%emt 0:00:05]} 2. Nc3 {[%emt 0:00:16]} a6 {[%emt 0:00:18]} 3. f4 {[%emt 0:00:56]} e6 {[%emt 0:00:42]} 4. d3 {[%emt 0:01:47]} d5 {[%emt 0:01:27]} 5. exd5 {[%emt 0:07:05]} exd5 {[%emt 0:00:48]} 6. Nf3 {[%emt 0:01:59]} Nf6 {[%emt 0:01:13]} 7. d4 {[%emt 0:10:48]} Nc6 {[%emt 0:05:05]} 8. Be3 {[%emt 0:05:40]} c4 {[%emt 0:03:15]} 9. Ne5 {[%emt 0:06:44]} Bb4 {[%emt 0:02:47]} 10. Nxc6 {[%emt 0:06:09]} (10. Be2 $17) 10... bxc6 {[%emt 0:00:07]} 11. Bd2 {[%emt 0:02:54]} O-O {[%emt 0:03:18]} 12. Be2 {[%emt 0:06:23]} Bxc3 {[%emt 0:00:38]} 13. Bxc3 Ne4 {[%emt 0:01:39]} 14. O-O {[%emt 0:06:48]} Rb8 {[%emt 0:06:20]} 15. Rb1 {[%emt 0:03:47]} Bf5 {[%emt 0:03:18]} 16. Qe1 {[%emt 0:09:20]} Nxc3 {[%emt 0:07:53]} (16... Qd6 $17) 17. Qxc3 {[%emt 0:00:25]} Qb6 $11 {[%emt 0:02:07]} (17... Qd6 $15) 18. b3 {[%emt 0:06:24]} Qb4 {[%emt 0:07:27]} 19. Qxb4 {[%emt 0:02:58]} Rxb4 {[%emt 0:00:06]} 20. bxc4 {[%emt 0:00:13]} Ra4 {[%emt 0:06:35]} 21. cxd5 cxd5 {[%emt 0:01:23]} 22. Rb2 {[%emt 0:08:23]} Rxd4 {[%emt 0:01:46]} 23. Bxa6 {[%emt 0:01:11]} Rd2 {[%emt 0:00:49]} 24. Rf2 {[%emt 0:00:52]} Rd1+ {[%emt 0:00:03]} 25. Rf1 {[%emt 0:00:17]} Rd2 {[%emt 0:00:07]} 26. Rf2 {[%emt 0:01:50]} Rd1+ {[%emt 0:02:33]} 27. Rf1 {[%emt 0:06:30]} Rd2 {[%emt 0:04:26]} 1/2-1/2

[Event "Portuguese-ch U10-12 2022"]
[Site "Fatima"]
[Date "2022.04.11"]
[Round "3.8"]
[White "Araujo, Ricardo Franca P D"]
[Black "Adhya, Havir"]
[Result "1-0"]
[ECO "C50"]
[WhiteElo "1405"]
[BlackElo "1216"]
[Annotator "NA RC"]
[PlyCount "93"]
[EventDate "2022.04.10"]
[EventType "swiss"]
[EventCountry "POR"]
[SourceTitle "playchess.com"]
[Source "ChessBase"]
[SourceQuality "1"]
[TimeControl "5400+30"]

1. e4 {[%emt 0:00:01]} e5 {[%emt 0:00:11]} 2. Nf3 {[%emt 0:00:06]} Nc6 {[%emt 0:00:10]} 3. Bc4 {[%emt 0:00:06]} Bc5 {[%emt 0:00:08]} 4. d3 {[%emt 0:00:06]} Nf6 {[%emt 0:00:15]} 5. O-O {[%emt 0:00:06]} d6 {[%emt 0:00:07]} 6. c3 {[%emt 0:00:06]} Bg4 {[%emt 0:00:44]} 7. Nbd2 {[%emt 0:00:09]} O-O {[%emt 0:00:14]} 8. Re1 {[%emt 0:00:07]} a6 {[%emt 0:01:50]} 9. Nf1 {[%emt 0:00:09]} Ne7 {[%emt 0:00:22]} 10. h3 {[%emt 0:00:39]} Be6 {[%emt 0:00:38]} 11. Bb3 {[%emt 0:00:21]} Qd7 {[%emt 0:00:39]} 12. Ng3 {[%emt 0:00:57]} h6 {[%emt 0:01:11]} 13. d4 {[%emt 0:00:41]} exd4 {[%emt 0:01:41]} 14. cxd4 {[%emt 0:00:07]} Bb4 {[%emt 0:00:14]} 15. Re2 {[%emt 0:01:43]} c6 {[%emt 0:00:52]} 16. Be3 {[%emt 0:00:42]} d5 {[%emt 0:08:02]} 17. e5 {[%emt 0:05:04]} Nh7 {[%emt 0:06:01]} 18. Ne1 {[%emt 0:02:16]} Bxe1 {[%emt 0:01:39]} 19. Rxe1 {[%emt 0:00:07]} Rfe8 {[%emt 0:03:03]} 20. Bc2 {[%emt 0:02:15]} Nf5 {[%emt 0:03:08]} 21. Qd3 {[%emt 0:00:46]} g6 {[%emt 0:02:33]} 22. Nxf5 {[%emt 0:01:31]} Bxf5 {[%emt 0:00:11]} 23. Qd2 {[%emt 0:00:09]} Bxc2 {[%emt 0:06:19]} 24. Qxc2 {[%emt 0:00:06]} Kg7 {[%emt 0:00:10]} 25. Qd2 {[%emt 0:01:20]} g5 {[%emt 0:00:37]} 26. f4 {[%emt 0:02:46]} Qe7 {[%emt 0:06:58]} 27. f5 {[%emt 0:00:24]} f6 {[%emt 0:01:38]} 28. e6 {[%emt 0:00:27]} Qd6 {[%emt 0:08:44]} 29. Qe2 {[%emt 0:02:05]} Nf8 {[%emt 0:01:47]} 30. Bd2 {[%emt 0:01:52]} Re7 {[%emt 0:02:30]} 31. a3 {[%emt 0:01:13]} a5 {[%emt 0:00:25]} 32. Qh5 {[%emt 0:00:17]} c5 {[%emt 0:01:45]} 33. h4 {[%emt 0:07:29]} cxd4 {[%emt 0:01:33]} 34. hxg5 {[%emt 0:00:28]} hxg5 {[%emt 0:00:24]} 35. Bxg5 {[%emt 0:00:21]} fxg5 {[%emt 0:00:50]} 36. f6+ {[%emt 0:00:38]} Kxf6 {[%emt 0:00:25]} 37. Rf1+ {[%emt 0:00:05]} Kg7 {[%emt 0:00:27]} 38. Qxg5+ {[%emt 0:00:31]} Ng6 {[%emt 0:00:41]} 39. Rf6 {[%emt 0:00:07]} Rxe6 {[%emt 0:00:34]} 40. Qxg6+ {[%emt 0:00:08]} Kh8 {[%emt 0:00:19]} 41. Rxe6 {[%emt 0:00:12]} Qc5 {[%emt 0:01:04]} 42. Qh6+ {[%emt 0:00:16]} Kg8 {[%emt 0:00:06]} 43. Rg6+ {[%emt 0:00:05]} Kf7 {[%emt 0:00:14]} 44. Rg7+ {[%emt 0:00:04]} Ke8 {[%emt 0:00:10]} 45. Qh8+ {[%emt 0:00:26]} Qf8 {[%emt 0:00:01]} 46. Re1+ {[%emt 0:00:15]} Kd8 {[%emt 0:00:20]} 47. Qxf8# 1-0

[Event "Portuguese-ch U10-12 2022"]
[Site "Fatima"]
[Date "2022.04.12"]
[Round "4.1"]
[White "Silva, Daniel Medeiros Avel"]
[Black "De Sousa Silva, Lucas Jose"]
[Result "0-1"]
[ECO "A43"]
[WhiteElo "2024"]
[BlackElo "1656"]
[Annotator "RC"]
[PlyCount "38"]
[EventDate "2022.04.10"]
[EventType "swiss"]
[EventCountry "POR"]
[SourceTitle "playchess.com"]
[Source "ChessBase"]
[SourceQuality "1"]
[TimeControl "5400+30"]

1. d4 {[%emt 0:03:35]} Nf6 {[%emt 0:01:00]} 2. c4 {[%emt 0:01:03]} c5 {[%emt 0:01:25]} 3. d5 {[%emt 0:00:58]} d6 {[%emt 0:00:38]} 4. Qc2 {[%emt 0:06:38]} g6 {[%emt 0:05:05]} 5. Nc3 {[%emt 0:03:44]} Bg7 {[%emt 0:02:51]} 6. e4 {[%emt 0:07:12]} O-O {[%emt 0:02:19]} 7. Be2 {[%emt 0:03:46]} e6 {[%emt 0:04:36]} 8. dxe6 {[%emt 0:06:18]} fxe6 {[%emt 0:02:33]} 9. Be3 {[%emt 0:09:50]} Nc6 {[%emt 0:03:14]} 10. a3 {[%emt 0:02:09]} e5 {[%emt 0:00:41]} 11. Nd5 {[%emt 0:13:45]} Nd4 {[%emt 0:09:13]} 12. Bxd4 {[%emt 0:00:12]} cxd4 {[%emt 0:00:11]} 13. Nxf6+ {[%emt 0:01:50]} Qxf6 {[%emt 0:00:42]} 14. Nf3 {[%emt 0:00:12]} Bd7 {[%emt 0:05:02]} 15. O-O {[%emt 0:01:05]} Rac8 {[%emt 0:00:30]} 16. b4 {[%emt 0:00:51]} b5 {[%emt 0:00:33]} 17. c5 {[%emt 0:02:04]} dxc5 {[%emt 0:03:39]} 18. bxc5 {[%emt 0:01:09]} Qc6 {[%emt 0:05:16]} 19. Ng5 {[%emt 0:02:05]} Bh6 {[%emt 0:01:12]} 0-1

[Event "Portuguese-ch U10-12 2022"]
[Site "Fatima"]
[Date "2022.04.12"]
[Round "4.2"]
[White "Almeida, Diogo Rodrigues Sant"]
[Black "Albuquerque, Eduardo Ferreira"]
[Result "0-1"]
[ECO "B13"]
[WhiteElo "1467"]
[BlackElo "1828"]
[Annotator "NA RC"]
[PlyCount "50"]
[EventDate "2022.04.10"]
[EventType "swiss"]
[EventCountry "POR"]
[SourceTitle "playchess.com"]
[Source "ChessBase"]
[SourceQuality "1"]
[TimeControl "5400+30"]

1. e4 {[%emt 0:00:02]} c6 {[%emt 0:00:38]} 2. d4 {[%emt 0:00:35]} d5 {[%emt 0:00:28]} 3. exd5 {[%emt 0:00:57]} cxd5 {[%emt 0:00:15]} 4. Nf3 {[%emt 0:00:37]} Nf6 {[%emt 0:06:24]} 5. Bd3 {[%emt 0:03:01]} Bg4 {[%emt 0:05:20]} 6. O-O {[%emt 0:02:35]} e6 {[%emt 0:04:43]} 7. c3 {[%emt 0:02:22]} Bd6 {[%emt 0:08:20]} 8. Qa4+ {[%emt 0:09:38]} Nbd7 {[%emt 0:14:13]} 9. Ne5 {[%emt 0:01:30]} O-O {[%emt 0:02:59]} 10. f4 {[%emt 0:07:37]} a6 {[%emt 0:07:21]} 11. Qc2 {[%emt 0:01:33]} Bh5 {[%emt 0:05:54]} 12. a4 {[%emt 0:06:19]} Bg6 {[%emt 0:02:45]} 13. Nxg6 {[%emt 0:09:16]} hxg6 {[%emt 0:00:16]} 14. Nd2 {[%emt 0:02:43]} Rc8 {[%emt 0:02:17]} 15. Nf3 {[%emt 0:02:20]} Qb6 {[%emt 0:01:19]} 16. Kh1 {[%emt 0:01:41]} Nb8 {[%emt 0:10:29]} 17. h3 {[%emt 0:09:33]} Nh5 $15 {[%emt 0:03:06]} 18. Rf2 {[%emt 0:14:20]} Nxf4 {[%emt 0:03:43]} 19. Bxf4 {[%emt 0:05:51]} Bxf4 {[%emt 0:00:13]} 20. Ne5 {[%emt 0:00:39]} Bxe5 {[%emt 0:00:45]} 21. dxe5 {[%emt 0:00:02]} Nc6 {[%emt 0:01:35]} 22. Re1 {[%emt 0:02:32]} Nb4 {[%emt 0:01:33]} 23. cxb4 {[%emt 0:02:50]} Rxc2 {[%emt 0:00:16]} 24. Rxc2 {[%emt 0:00:03]} Qxb4 {[%emt 0:00:26]} 25. Ra1 {[%emt 0:01:18]} Qd4 0-1